lending/lending_fUSD_20260411
["ID","MTS","AMOUNT","RATE_DAILY","PERIOD"]
[420263138,1775872373740,-14.8549791,0.000106,2]
[420263139,1775872373801,-255.1450209,0.000106,2]
[420263140,1775872383910,500.0,0.00010673,2]
[420263141,1775872384367,500.0,0.00010673,2]
[420263142,1775872384479,500.0,0.00010673,2]
[420263143,1775872386750,694.0,0.0001069,2]
[420263144,1775872427303,6943.185402,0.00010646,2]
[420263145,1775872445442,675.0,0.0001069,3]
[420263146,1775872455756,-300.0,0.00010699,2]
[420263147,1775872455795,-150.0,0.00010699,2]
[420263148,1775872455835,-500.0,0.00010699,2]
[420263149,1775872455879,-500.0,0.00010699,2]
[420263150,1775872455922,-260.17107867,0.00010699,2]
[420263151,1775872456242,300.0,0.00010699,2]
[420263152,1775872458842,500.0,0.00010699,2]
[420263153,1775872458909,295.32670596,0.00010699,2]
[420263154,1775872464175,188.01786906,0.00010699,2]
[420263155,1775872474283,3490.0,0.000104,5]
[420263156,1775872474669,500.0,0.00010699,2]
[420263157,1775872474779,587.7065227,0.00010699,2]
[420263158,1775872497376,718.61674494,0.000105,2]
[420263159,1775872497412,10000.01,0.000105,2]
[420263160,1775872497449,10000.01,0.000105,2]
[420263161,1775872497494,10000.01,0.000105,2]
[420263162,1775872497550,10000.01,0.000105,2]
[420263163,1775872497604,10000.01,0.000105,2]
[420263164,1775872497657,10000.01,0.000105,2]
[420263165,1775872497714,10000.01,0.000105,2]
[420263166,1775872497751,10000.01,0.000105,2]
[420263167,1775872497787,10000.01,0.000105,2]
[420263168,1775872507976,3156.66766,7.945e-05,2]
[420263169,1775872514398,-3608.16675534,0.0001,2]
[420263170,1775872514491,-10000.01,0.0001,2]
[420263171,1775872514807,-10000.01,0.0001,2]
[420263172,1775872514867,-3118.19675534,0.0001,2]
[420263173,1775872514978,-1236.39351068,0.0001,2]
[420263174,1775872515031,-2527.22297864,0.0001,2]
[420263175,1775872515079,-1236.39351068,0.000102,3]
[420263176,1775872516619,-703.40351068,0.000102,3]
[420263177,1775872516699,-3593.20297864,0.000102,3]
[420263178,1775872516760,-3879.58404272,0.000104,5]
[420263179,1775872516809,-1653.41595728,0.000104,5]
[420263180,1775872516852,-300.0,0.00010499,2]
[420263181,1775872516916,-1200.0,0.00010499,2]
[420263182,1775872517017,-254.0,0.00010499,2]
[420263183,1775872517085,-300.0,0.00010499,2]
[420263184,1775872517546,-2699.39106408,0.000105,2]
[420263185,1775872517597,-1653.41595728,0.000105,2]
[420263186,1775872517612,-300.0,0.000105,2]
[420263187,1775872517633,-1200.0,0.000105,2]
[420263188,1775872517660,-254.0,0.000105,2]
[420263189,1775872517680,-300.0,0.000105,2]
[420263190,1775872517701,-2585.17808544,0.000105,2]
[420263191,1775872517755,-10000.01,0.000105,2]
[420263192,1775872517995,-10000.01,0.000105,2]
[420263193,1775872518041,-10000.01,0.000105,2]
[420263194,1775872518079,-10000.01,0.000105,2]
[420263195,1775872518131,-10000.01,0.000105,2]
[420263196,1775872530195,598.2397601,0.0001,2]
[420263197,1775872535597,3845.397816,0.00010447,2]
[420263198,1775872555103,556.3724239,0.00010447,2]
[420263199,1775872555141,1956.8618371,0.00010447,2]
[420263200,1775872567250,1232.0,0.0001048,2]
[420263201,1775872568356,-10000.01,0.000105,2]
[420263202,1775872568452,-10000.01,0.000105,2]
[420263203,1775872568616,-10000.01,0.000105,2]
[420263204,1775872568817,-10000.01,0.000105,2]
[420263205,1775872575219,164.0,0.0001048,2]
[420263206,1775872628670,6072.363213,0.00010446,2]
[420263207,1775872628942,1195.0,0.00010489,2]
[420263208,1775872632503,500.0,0.000104,2]
[420263209,1775872641189,164.0,0.00010489,2]
[420263210,1775872656483,1120.322656,0.00010445,2]
[420263211,1775872689174,1136.0,0.00010489,2]
[420263212,1775872717203,5000.01,8e-05,2]
[420263213,1775872717256,1671.43449657,8e-05,2]
[420263214,1775872746860,1097.0,0.00010489,2]
[420263215,1775872748084,1097.0,0.00010489,2]
[420263216,1775872753290,523.55258513,8.625e-05,10]
[420263217,1775872769303,500.0,0.000104,2]
[420263218,1775872809538,261.76334266,0.000101,2]
[420263219,1775872810697,155.0,0.00010489,2]
[420263220,1775872810745,1006.0,0.00010489,2]
[420263221,1775872841544,-300.0,0.00010497,2]
[420263222,1775872841604,-1200.0,0.00010498,2]
[420263223,1775872841682,-302.0,0.00010498,2]
[420263224,1775872841745,-300.0,0.00010498,2]
[420263225,1775872841802,-300.0,0.00010498,2]
[420263226,1775872841851,-300.0,0.00010498,2]
[420263227,1775872841891,-1200.0,0.00010498,2]
[420263228,1775872841931,-150.0,0.00010498,2]
[420263229,1775872841962,-5948.0,0.00010499,2]
[420263231,1775872867374,991.0,0.00010489,2]
[420263232,1775872888406,489.47321161,0.0001,2]
[420263234,1775872935412,197.8342,0.000104,2]
[420263235,1775872936039,993.0,0.00010489,2]
[420263236,1775872951339,200.0,9.983e-05,2]
[420263237,1775872985982,986.0,0.00010489,2]
[420263238,1775872987907,929.0,7.945e-05,2]
[420263239,1775873029493,194.8915,0.00010398,2]
[420263240,1775873045925,443.0,0.00010489,2]
[420263241,1775873048517,1223.632826,7.945e-05,2]
[420263242,1775873082758,500.0,9.942e-05,2]
[420263246,1775873106095,914.0,0.00010489,2]
[420263247,1775873167067,869.0,0.00010489,2]
[420263248,1775873174369,9131.01,0.0001,2]
[420263249,1775873174401,10000.01,0.0001,2]
[420263250,1775873174435,10000.01,0.0001,2]
[420263251,1775873174480,1430.12460089,0.0001,2]
[420263252,1775873231978,1125.0,0.00010489,2]
[420263253,1775873237607,163.0,0.00010489,2]
[420263254,1775873287363,1069.0,0.00010489,2]
[420263255,1775873288387,4638.01,7.945e-05,2]
[420263257,1775873346719,1016.0,0.00010489,2]
[420263258,1775873365209,-381.76671007,0.00010497,2]
[420263259,1775873406817,965.0,0.00010489,2]
[420263260,1775873407105,155.0,0.00010489,2]
[420263265,1775873431866,-300.0,0.00010496,2]
[420263267,1775873431881,-1200.0,0.00010496,2]
[420263269,1775873431893,-300.0,0.00010497,2]
[420263271,1775873431903,-1200.0,0.00010497,2]
[420263273,1775873431916,-250.0,0.00010498,2]
[420263275,1775873431938,-14409.55,0.00010498,2]
[420263277,1775873431958,-150.0,0.00010498,2]
[420263279,1775873431982,-250.0,0.00010498,2]
[420263282,1775873432004,-294.01467286,0.00010498,2]
[420263283,1775873432029,-506.50023244,0.00010499,2]
[420263285,1775873432064,-844.22689705,0.00010499,2]
[420263287,1775873432077,-2682.05976812,0.00010499,2]
[420263289,1775873432100,-1028.64961428,0.00010499,2]
[420263291,1775873432115,-3182.56317461,0.00010499,2]
[420263293,1775873432125,-348.08049699,0.00010499,2]
[420263295,1775873432155,-549.77333207,0.00010499,2]
[420263297,1775873432165,-549.77333207,0.00010499,2]
[420263299,1775873432196,-549.77333207,0.00010499,2]
[420263301,1775873432206,-549.77333207,0.00010499,2]
[420263303,1775873432218,-549.77333207,0.00010499,2]
[420263305,1775873432246,-549.77333207,0.00010499,2]
[420263308,1775873432271,-549.77333207,0.00010499,2]
[420263310,1775873432283,-549.77333207,0.00010499,2]
[420263311,1775873432309,-549.77333207,0.00010499,2]
[420263314,1775873432319,-549.77333207,0.00010499,2]
[420263315,1775873432340,-549.77333207,0.00010499,2]
[420263317,1775873432349,-549.77333207,0.00010499,2]
[420263319,1775873432360,-549.77333207,0.00010499,2]
[420263321,1775873432372,-549.77333207,0.00010499,2]
[420263323,1775873432394,-549.77333207,0.00010499,2]
[420263325,1775873432404,-549.77333207,0.00010499,2]
[420263327,1775873432413,-549.77333207,0.00010499,2]
[420263329,1775873432441,-549.77333207,0.00010499,2]
[420263331,1775873432450,-549.77333207,0.00010499,2]
[420263333,1775873432469,-549.77333207,0.00010499,2]
[420263335,1775873432478,-549.77333207,0.00010499,2]
[420263337,1775873432489,-549.77333207,0.00010499,2]
[420263339,1775873432506,-549.77333207,0.00010499,2]
[420263340,1775873432517,-549.77333207,0.00010499,2]
[420263341,1775873432532,-549.77333207,0.00010499,2]
[420263342,1775873432548,-549.77333207,0.00010499,2]
[420263343,1775873432559,-549.77333207,0.00010499,2]
[420263344,1775873432576,-549.77333207,0.00010499,2]
[420263345,1775873432592,-549.77333207,0.00010499,2]
[420263346,1775873432617,-549.77333207,0.00010499,2]
[420263347,1775873432628,-549.77333207,0.00010499,2]
[420263348,1775873432642,-549.77333207,0.00010499,2]
[420263349,1775873432652,-549.77333207,0.00010499,2]
[420263350,1775873432668,-549.77333207,0.00010499,2]
[420263351,1775873432687,-549.77333207,0.00010499,2]
[420263352,1775873432698,-549.77333207,0.00010499,2]
[420263353,1775873432711,-549.77333207,0.00010499,2]
[420263354,1775873432721,-549.77333207,0.00010499,2]
[420263355,1775873432731,-549.77333207,0.00010499,2]
[420263356,1775873432743,-549.77333207,0.00010499,2]
[420263357,1775873432753,-549.77333207,0.00010499,2]
[420263358,1775873432763,-549.77333207,0.00010499,2]
[420263359,1775873432773,-549.77333207,0.00010499,2]
[420263360,1775873432787,-1049.56727032,0.00010499,2]
[420263361,1775873432803,-1049.56727032,0.00010499,2]
[420263362,1775873432812,-1049.56727032,0.00010499,2]
[420263363,1775873432821,-1049.56727032,0.00010499,2]
[420263364,1775873432840,-1049.56727032,0.00010499,2]
[420263365,1775873432850,-1049.56727032,0.00010499,2]
[420263366,1775873432874,-1049.56727032,0.00010499,2]
[420263367,1775873432884,-1049.56727032,0.00010499,2]
[420263368,1775873432893,-1049.56727032,0.00010499,2]
[420263369,1775873432916,-1049.56727032,0.00010499,2]
[420263370,1775873432932,-1049.56727032,0.00010499,2]
[420263371,1775873432941,-1049.56727032,0.00010499,2]
[420263372,1775873432956,-1049.56727032,0.00010499,2]
[420263373,1775873432973,-1049.56727032,0.00010499,2]
[420263374,1775873432987,-1049.56727032,0.00010499,2]
[420263375,1775873432996,-1049.56727032,0.00010499,2]
[420263376,1775873433009,-1049.56727032,0.00010499,2]
[420263377,1775873433022,-1049.56727032,0.00010499,2]
[420263378,1775873433034,-1049.56727032,0.00010499,2]
[420263379,1775873433047,-1049.56727032,0.00010499,2]
[420263380,1775873433060,-1049.56727032,0.00010499,2]
[420263381,1775873433071,-642.32776531,0.00010499,2]
[420263382,1775873433080,-500.0,0.00010499,2]
[420263383,1775873433106,-500.0,0.00010499,2]
[420263384,1775873433118,-500.0,0.00010499,2]
[420263385,1775873433130,-365.4938842,0.00010499,2]
[420263386,1775873433156,-500.0,0.00010499,2]
[420263387,1775873433170,-631.06928671,0.00010499,2]
[420263388,1775873433186,-500.0,0.00010499,2]
[420263389,1775873433208,-500.0,0.00010499,2]
[420263390,1775873433218,-645.11563404,0.00010499,2]
[420263391,1775873433227,-206.74252595,0.00010499,2]
[420263392,1775873433255,-181.22992074,0.00010499,2]
[420263393,1775873433264,-141246.65931356,0.000105,2]
[420263394,1775873433297,-4937.9923059,0.000105,2]
[420263395,1775873433332,-70197.77862563,0.000105,2]
[420263396,1775873433354,-277.70821029,0.000105,2]
[420263397,1775873433599,-1646.2481188,0.000105,2]
[420263398,1775873433623,-310.64926706,0.000105,2]
[420263399,1775873433648,-62762.74377791,0.000105,2]
[420263400,1775873433667,-45384.55061876,0.000105,2]
[420263401,1775873433688,-10628.04881035,0.000105,2]
[420263402,1775873433700,-10000.0,0.000105,2]
[420263403,1775873433721,-172.29464571,0.000105,2]
[420263404,1775873433731,-500.0,0.000105,2]
[420263405,1775873433749,-183.16,0.00010511,2]
[420263406,1775873433792,-217.38498043,0.000106,2]
[420263407,1775873433849,-21.78910733,0.000106,2]
[420263408,1775873433858,-381.89609821,0.000106,2]
[420263409,1775873433870,-413.2315853,0.000106,2]
[420263410,1775873433881,-435.07643047,0.000106,2]
[420263411,1775873433893,-465.04534846,0.00010658,2]
[420263412,1775873433916,-1859.16305154,0.00010658,2]
[420263413,1775873433928,-500.0,0.00010673,2]
[420263414,1775873433940,-148.57705876,0.00010673,2]
[420263421,1775873437753,-151.0,0.00010658,2]
[420263422,1775873437763,-352.78828933,0.00010673,2]
[420263423,1775873437782,-500.0,0.00010673,2]
[420263424,1775873437791,-170.70263964,0.00010673,2]
[420263425,1775873437802,-226.08388261,0.00010673,2]
[420263426,1775873437823,-273.91611739,0.00010673,2]
[420263427,1775873437833,-500.0,0.00010673,2]
[420263428,1775873437850,-122.24819575,0.00010673,2]
[420263429,1775873437871,-377.75180425,0.00010673,2]
[420263430,1775873437881,-376.37357353,0.00010673,2]
[420263431,1775873437899,-500.0,0.00010673,2]
[420263432,1775873437911,-500.47449023,0.00010673,2]
[420263433,1775873437937,-500.0,0.00010673,2]
[420263434,1775873437948,-1928.133,0.00010673,2]
[420263435,1775873437967,-170.781,0.00010673,2]
[420263436,1775873437985,-151.0,0.00010673,2]
[420263437,1775873437994,-151.0,0.00010694,2]
[420263438,1775873438025,-151.0,0.00010694,2]
[420263439,1775873438035,-151.0,0.00010694,2]
[420263440,1775873438051,-151.0,0.00010694,2]
[420263441,1775873438067,-151.0,0.00010694,2]
[420263442,1775873438078,-151.0,0.00010694,2]
[420263443,1775873438088,-151.0,0.00010694,2]
[420263444,1775873438104,-151.0,0.00010694,2]
[420263446,1775873438119,-500.0,0.00010694,2]
[420263448,1775873438129,-151.0,0.00010694,2]
[420263450,1775873438143,-402.71339058,0.00010694,2]
[420263452,1775873438165,-151.0,0.00010694,2]
[420263454,1775873438175,-151.0,0.00010694,2]
[420263456,1775873438185,-151.0,0.00010694,2]
[420263458,1775873438194,-151.0,0.00010694,2]
[420263460,1775873438210,-151.0,0.00010694,2]
[420263461,1775873438219,-151.0,0.00010694,2]
[420263463,1775873438232,-201.87064827,0.00010694,2]
[420263466,1775873438258,-294.64097032,0.00010694,2]
[420263467,1775873438269,-151.0,0.00010694,2]
[420263469,1775873438279,-151.0,0.00010694,2]
[420263471,1775873438302,-151.0,0.00010694,2]
[420263472,1775873438324,-151.0,0.00010694,2]
[420263475,1775873438336,-151.0,0.00010694,2]
[420263478,1775873438368,-151.0,0.00010694,2]
[420263480,1775873438382,-151.0,0.00010694,2]
[420263482,1775873438422,-151.0,0.00010694,2]
[420263483,1775873438433,-151.0,0.00010694,2]
[420263484,1775873438463,-151.0,0.00010694,2]
[420263485,1775873438473,-151.0,0.00010694,2]
[420263486,1775873438489,-157.7627207,0.00010694,2]
[420263487,1775873438505,-500.0,0.00010699,2]
[420263488,1775873438523,-500.0,0.00010699,2]
[420263489,1775873438533,-183.63293233,0.00010699,2]
[420263490,1775873438542,-416.25673428,0.00010699,2]
[420263491,1775873438553,-500.0,0.00010699,2]
[420263492,1775873438570,-597.49273103,0.00010699,2]
[420263493,1775873438586,-500.0,0.00010699,2]
[420263494,1775873438595,-500.0,0.00010699,2]
[420263495,1775873438608,-350.0,0.00010699,2]
[420263496,1775873438618,-500.0,0.00010699,2]
[420263497,1775873438634,-191.86114315,0.00010699,2]
[420263498,1775873438646,-500.0,0.00010699,2]
[420263499,1775873438655,-500.0,0.00010699,2]
[420263500,1775873438674,-500.0,0.00010699,2]
[420263501,1775873438684,-500.0,0.00010699,2]
[420263502,1775873438693,-500.0,0.00010699,2]
[420263503,1775873438714,-500.0,0.00010699,2]
[420263504,1775873438723,-500.0,0.00010699,2]
[420263505,1775873438732,-181.13798123,0.00010699,2]
[420263506,1775873438747,-500.0,0.00010699,2]
[420263507,1775873438757,-500.0,0.00010699,2]
[420263508,1775873438766,-479.496359,0.00010699,2]
[420263509,1775873438776,-422.6205211,0.00010699,2]
[420263510,1775873438790,-77.3794789,0.00010699,2]
[420263511,1775873438803,-500.0,0.00010699,2]
[420263512,1775873438813,-136.33699307,0.00010699,2]
[420263513,1775873438850,-363.66300693,0.00010699,2]
[420263514,1775873438866,-181.3918341,0.00010699,2]
[420263515,1775873438895,-318.6081659,0.00010699,2]
[420263516,1775873438913,-161.0906213,0.00010699,2]
[420263517,1775873438944,-500.0,0.00010699,2]
[420263518,1775873438982,-300.70848278,0.00010699,2]
[420263519,1775873439015,-150.0,0.00010699,2]
[420263520,1775873439046,-150.0,0.00010699,2]
[420263521,1775873439059,-8811.16310897,0.000107,2]
[420263522,1775873439098,-334.615,0.000107,2]
[420263523,1775873439135,-4055.61632103,0.000107,2]
[420263527,1775873439990,-380.30947352,0.000107,2]
[420263528,1775873440030,-4494.78966251,0.000107,2]
[420263529,1775873440048,-542.19718489,0.000107,2]
[420263530,1775873440338,-3565.18647994,0.000107,2]
[420263545,1775873442940,-14247.39970116,0.000107,2]
[420263546,1775873443177,-47414.13157562,0.000107,2]
[420263548,1775873443208,-6198.80220938,0.000107,2]
[420263549,1775873443232,-1613.1189758,0.000107,2]
[420263550,1775873443274,-290.0,0.000107,2]
[420263557,1775873445803,-12519.17252361,0.000107,2]
[420263558,1775873445910,-370169.07349541,0.000107,2]
[420263559,1775873445924,-151.0,0.000107,2]
[420263560,1775873445939,-151.0,0.000107,2]
[420263561,1775873445951,-151.0,0.000107,2]
[420263562,1775873445979,-256.261579,0.000107,2]
[420263563,1775873445989,-256.261579,0.000107,2]
[420263564,1775873446005,-256.261579,0.000107,2]
[420263565,1775873446022,-256.261579,0.000107,2]
[420263566,1775873446033,-194.53500501,0.00010709,30]
[420263567,1775873446069,-194.53500503,0.00010718,2]
[420263568,1775873446093,-194.53500503,0.00010759,2]
[420263569,1775873446117,-194.53500503,0.00010773,2]
[420263570,1775873446140,-151.0,0.00010797,2]
[420263571,1775873446201,-170.78734437,0.00010797,2]
[420263573,1775873446226,-1042.73872331,0.00010799,3]
[420263575,1775873446251,-151.15,0.0001085,2]
[420263576,1775873446276,-2000.0,0.00010903,2]
[420263577,1775873446313,-500.0,0.00010958,2]
[420263578,1775873446333,-500.0,0.00010958,3]
[420263579,1775873446357,-500.0,0.00010958,4]
[420263580,1775873446388,-2606.98028352,0.00011,2]
[420263581,1775873446398,-1053.29056252,0.00011061,2]
[420263582,1775873446419,-500.0,0.00011098,5]
[420263583,1775873446428,-15383.02507008,0.00011099,2]
[420263584,1775873446438,-15383.02507007,0.00011099,2]
[420263585,1775873446459,-502.01366568,0.00011221,2]
[420263586,1775873446471,-476.23135778,0.00011221,2]
[420263587,1775873446483,-1000.0,0.00011221,2]
[420263588,1775873446495,-1000.0,0.00011221,2]
[420263589,1775873446509,-1000.0,0.00011221,2]
[420263590,1775873446519,-1000.0,0.00011221,2]
[420263591,1775873446535,-1000.0,0.00011221,2]
[420263592,1775873446549,-150.0,0.00011223,2]
[420263593,1775873446559,-150.0,0.000113,2]
[420263594,1775873446571,-150.0,0.00011339,2]
[420263595,1775873446582,-162.77797568,0.00011447,2]
[420263596,1775873446597,-1135.11,0.00011506,2]
[420263597,1775873446621,-255.0,0.00011527,2]
[420263598,1775873446631,-15383.02507007,0.00011533,2]
[420263599,1775873446641,-338.0,0.0001154,2]
[420263600,1775873446665,-420.0,0.00011541,2]
[420263601,1775873446677,-1680.0,0.00011546,2]
[420263602,1775873446686,-198.7970686,0.00011547,2]
[420263603,1775873446712,-5000.0,0.00011547,2]
[420263604,1775873446720,-195.0,0.00011547,2]
[420263605,1775873446731,-600.0,0.00011547,2]
[420263606,1775873446749,-600.0,0.00011547,2]
[420263607,1775873446763,-606.02718415,0.00011547,2]
[420263608,1775873446773,-614.79417446,0.00011547,2]
[420263609,1775873446803,-250.0,0.00011547,2]
[420263610,1775873446813,-308.0,0.00011547,2]
[420263611,1775873446827,-5038.80515877,0.00011547,2]
[420263612,1775873446837,-834.43,0.00011671,2]
[420263613,1775873446849,-1500.0,0.00011768,2]
[420263614,1775873446863,-1500.0,0.00011768,2]
[420263615,1775873446875,-1500.0,0.00011768,2]
[420263616,1775873446887,-1500.0,0.00011768,2]
[420263617,1775873446896,-1500.0,0.00011768,2]
[420263618,1775873446922,-159.43,0.00011835,2]
[420263619,1775873446944,-2629.62,0.00011889,2]
[420263620,1775873446961,-15383.02507007,0.000121,2]
[420263621,1775873446975,-267.068798,0.00012149,2]
[420263622,1775873447001,-180.11,0.00012224,2]
[420263623,1775873447018,-2000.0,0.00012266,2]
[420263624,1775873447044,-965.0,0.00012303,3]
[420263625,1775873447082,-1341.65224467,0.00012316,2]
[420263626,1775873447108,-2000.0,0.00012316,2]
[420263627,1775873447118,-1389.80708587,0.00012316,2]
[420263628,1775873447137,-1503.69721978,0.00012316,2]
[420263629,1775873447147,-1519.42089929,0.00012316,2]
[420263630,1775873447160,-650.0,0.00012521,5]
[420263631,1775873447175,-155.0,0.00012527,3]
[420263632,1775873447186,-173.7906,0.000126,2]
[420263633,1775873447196,-433.0,0.00012661,2]
[420263634,1775873447214,-15383.02507007,0.00012667,2]
[420263635,1775873447226,-587.0,0.00012689,2]
[420263636,1775873447236,-2351.0,0.000127,2]
[420263637,1775873447252,-1951.66199201,0.00012864,2]
[420263638,1775873447265,-150.0,0.00012924,2]
[420263639,1775873447275,-103962.80995097,0.00012999,2]
[420263640,1775873447285,-250.0,0.00013,2]
[420263641,1775873447309,-507.0,0.000131,2]
[420263642,1775873447321,-250.0,0.00013151,2]
[420263643,1775873447352,-347.57890006,0.00013223,2]
[420263644,1775873447364,-15383.02507007,0.00013233,2]
[420263645,1775873447384,-176.62776942,0.00013237,2]
[420263646,1775873447406,-201.55934797,0.00013237,2]
[420263647,1775873447416,-8260.13072239,0.00013237,2]
[420263648,1775873447436,-500.0,0.00013237,2]
[420263649,1775873447450,-623.58710448,0.00013237,2]
[420263650,1775873447460,-174.61919141,0.00013237,2]
[420263651,1775873447472,-494.55059217,0.00013239,2]
[420263652,1775873447504,-8565.75555911,0.00013292,2]
[420263653,1775873447514,-500.0,0.00013292,2]
[420263654,1775873447541,-500.0,0.00013347,2]
[420263655,1775873447553,-8882.6885148,0.00013347,2]
[420263656,1775873447563,-517.00664676,0.00013402,2]
[420263657,1775873447584,-4689.00258169,0.00013402,2]
[420263658,1775873447595,-2475.46,0.00013425,2]
[420263659,1775873447605,-160.0,0.00013425,2]
[420263660,1775873447615,-296.917069,0.00013425,2]
[420263661,1775873447625,-433.834138,0.00013425,2]
[420263662,1775873447637,-623.449,0.00013434,2]
[420263663,1775873447647,-1047.0,0.00013434,2]
[420263664,1775873447656,-150.156,0.00013435,2]
[420263665,1775873447666,-1267.324,0.00013435,2]
[420263666,1775873447681,-928.423,0.00013435,2]
[420263667,1775873447692,-1218.186,0.00013435,2]
[420263668,1775873447702,-2472.0,0.00013435,2]
[420263669,1775873447717,-416.0,0.00013435,2]
[420263670,1775873447726,-6024.0,0.00013435,2]
[420263671,1775873447736,-1161.54,0.00013438,2]
[420263672,1775873447750,-500.0,0.00013442,2]
[420263673,1775873447760,-160.0,0.00013451,2]
[420263674,1775873447770,-278.459471,0.00013451,2]
[420263675,1775873447780,-396.918943,0.00013451,2]
[420263676,1775873447793,-1500.0,0.00013484,2]
[420263677,1775873447806,-1600.0,0.00013582,2]
[420263678,1775873447816,-2000.0,0.00013629,2]
[420263679,1775873447826,-151.0,0.00013668,2]
[420263680,1775873447840,-151.0,0.00013668,2]
[420263681,1775873447850,-151.0,0.00013668,2]
[420263682,1775873447860,-256.261579,0.00013668,2]
[420263683,1775873447870,-256.261579,0.00013668,2]
[420263684,1775873447883,-256.261579,0.00013668,2]
[420263685,1775873447896,-256.261579,0.00013668,2]
[420263686,1775873447907,-1135.11,0.00013669,2]
[420263687,1775873447920,-500.0,0.00013698,2]
[420263688,1775873447933,-500.0,0.00013698,2]
[420263689,1775873447949,-500.0,0.00013698,2]
[420263690,1775873447966,-500.0,0.00013698,2]
[420263691,1775873447986,-504.3393325,0.00013698,2]
[420263692,1775873448003,-521.30121152,0.00013698,2]
[420263693,1775873448020,-500.0,0.00013698,2]
[420263694,1775873448054,-500.0,0.00013698,2]
[420263695,1775873448131,-500.0,0.00013698,2]
[420263696,1775873448167,-500.0,0.00013698,2]
[420263697,1775873448202,-500.0,0.00013698,2]
[420263698,1775873448276,-500.0,0.00013698,2]
[420263699,1775873448295,-500.0,0.00013698,2]
[420263700,1775873448310,-338.31427312,0.00013698,2]
[420263701,1775873448322,-150.0,0.00013699,2]
[420263702,1775873448335,-200.0,0.00013699,2]
[420263703,1775873448345,-210.304031,0.00013699,2]
[420263704,1775873448375,-210.304031,0.00013699,2]
[420263705,1775873448384,-210.304031,0.00013699,2]
[420263706,1775873448394,-210.304031,0.00013699,2]
[420263707,1775873448412,-210.304031,0.00013699,2]
[420263708,1775873448424,-210.304031,0.00013699,2]
[420263709,1775873448433,-210.304031,0.00013699,2]
[420263710,1775873448449,-210.304031,0.00013699,2]
[420263711,1775873448477,-151.0,0.00013699,2]
[420263712,1775873448499,-151.0,0.00013699,2]
[420263713,1775873448512,-500.0,0.00013699,2]
[420263714,1775873448548,-259.14016346,0.00013699,2]
[420263715,1775873448576,-500.0,0.00013699,2]
[420263716,1775873448588,-500.67819322,0.00013699,2]
[420263717,1775873448611,-500.0,0.00013699,2]
[420263718,1775873448621,-150.99,0.00013699,2]
[420263719,1775873448643,-299.99,0.00013699,2]
[420263720,1775873448668,-9999.99,0.00013699,2]
[420263721,1775873448684,-205.0067997,0.00013699,2]
[420263722,1775873448700,-362.6409333,0.00013699,2]
[420263723,1775873448709,-501.76671909,0.00013699,2]
[420263724,1775873448722,-502.81382327,0.00013699,2]
[420263725,1775873448733,-501.00219689,0.00013699,2]
[420263726,1775873448746,-348.95386206,0.00013699,2]
[420263727,1775873448756,-501.10020559,0.00013699,2]
[420263728,1775873448767,-500.60459499,0.00013699,2]
[420263729,1775873448777,-500.0,0.00013699,2]
[420263730,1775873448789,-500.6072262,0.00013699,2]
[420263731,1775873448799,-501.08160892,0.00013699,2]
[420263732,1775873448811,-503.96572285,0.00013699,2]
[420263733,1775873448821,-500.6869067,0.00013699,2]
[420263734,1775873448834,-501.43856606,0.00013699,2]
[420263735,1775873448844,-500.92394986,0.00013699,2]